Cogmind - Beta 16 @@@ ROGUE MODE // 2025.12.08 @ 21:07:20 Player: Lazz Result: Destroyed by S-43 Plague with Heavy Machine Gun Performance ------------- Evolutions (7) 3500 Regions Visited (12) 2400 Robots Destroyed (61) 305 Value Destroyed (1801) 1801 Prototype IDs (13) 260 Alien Tech Used (0) 0 Bonus (866) 866 TOTAL SCORE: 9132 Bonus ------- Follower Combat Kills 66 Registered with UFD 300 Met Optimus in HQ 500 Cogmind --------- Core Integrity 0/1300 Matter 300/300 Energy 99/100 System Corruption 3% Temperature Cool (0) Movement Core (50) Location -3/Research Parts ------- > --- POWER (2) -------- (None) > --- PROPULSION (7) --- (None) > --- UTILITY (10) ----- Advanced Signal Interpreter > --- WEAPON (2) ------- (None) > --- INVENTORY (5) ---- Wheel Xenon Bombardment Thruster Peak State ------------ > --- POWER ------------ Light Antimatter Reactor Light Antimatter Reactor > --- PROPULSION ------- VTOL Module Field Propulsion Drive Field Propulsion Drive Field Propulsion Drive Field Propulsion Drive Field Propulsion Drive Field Propulsion Drive > --- UTILITY ---------- Advanced Sensor Array Advanced Signal Interpreter Improved Terrain Scanner Improved Targeting Computer Stasis Canceller Improved Phase Shifter Hacking Suite Hacking Suite System Shield Makeshift System Shield > --- WEAPON ----------- Coil Gun Companion Sword > --- INVENTORY -------- Micro Fission Core Biometal Medium Treads VTOL Module Advanced Point Defense System Improved Grenade Launcher [Rating: 105] Favorites ----------- Power Light Antimatter Reactor Engine Light Angular Momentum Engine Power Core Fission Core Reactor Light Antimatter Reactor Propulsion Flight Unit Treads Heavy Treads Leg Myomer Leg Wheel Wheel Hover Unit Backup Propulsion I Flight Unit Flight Unit Utility Hacking Suite Device Improved Sensor Array Storage Small Storage Unit Processor Machine Analyzer Hackware Hacking Suite Protection Experimental Power Shielding Weapon Beamcaster Energy Gun Beamcaster Ballistic Gun Flak Gun Launcher Improved Grenade Launcher Impact Weapon Impact Mace Slashing Weapon Companion Sword Build | -11 -10 -9 -8 -8 -8 -8 -6 -6 -6 -5 -4 -3 ------- Run | Yrd Mat Mat Mat Sto Rec Scr Fac Low Low Fac Fac Res Slots Evolved 14 | . . 2 2 . . . 4 . . 2 2 2 Power 1 | . . . . . . . . . . 1 . . Propulsion 5 | . . 1 1 . . . 1 . . . 1 1 Utility 8 | . . 1 1 . . . 3 . . 1 1 1 Weapon . | . . . . . . . . . . . . . Parts Attached 87 | 7 3 4 9 13 1 4 5 1 . 7 25 8 Power 11 | 1 . 1 1 3 . 1 . . . 1 2 1 Engine 7 | 1 . 1 1 3 . 1 . . . . . . Core 2 | . . . . . . . . . . 1 . 1 Reactor 2 | . . . . . . . . . . . 2 . Propulsion 27 | 2 2 1 2 4 . 2 . . . . 11 3 Treads 3 | . . . . . . . . . . . 2 1 Leg 3 | . . . . . . . . . . . 3 . Wheel 2 | 2 . . . . . . . . . . . . Hover . | . . . . . . . . . . . . . Flight 19 | . 2 1 2 4 . 2 . . . . 6 2 Utility 33 | 2 . 1 2 2 1 1 4 . . 6 11 3 Device 15 | 1 . 1 1 . . . 3 . . 2 5 2 Storage 1 | 1 . . . . . . . . . . . . Processor 9 | . . . 1 1 1 . . . . 1 5 . Hackware 7 | . . . . 1 . 1 . . . 3 1 1 Protection 1 | . . . . . . . 1 . . . . . Artifact . | . . . . . . . . . . . . . Weapon 16 | 2 1 1 4 4 . . 1 1 . . 1 1 Energy Gun 5 | 1 1 . 2 1 . . . . . . . . Energy Cannon . | . . . . . . . . . . . . . Ballistic Gun 5 | 1 . 1 1 1 . . . . . . 1 . Ballistic Cannon . | . . . . . . . . . . . . . Launcher 3 | . . . 1 2 . . . . . . . . Special Weapon . | . . . . . . . . . . . . . Impact Weapon 2 | . . . . . . . 1 . . . . 1 Slashing Weapon 1 | . . . . . . . . 1 . . . . Piercing Weapon . | . . . . . . . . . . . . . Special Melee Weapon . | . . . . . . . . . . . . . Unidentified Prototypes 5 | . . . . 2 . . 1 1 . . . 1 Parts Lost 55 | . 1 1 2 8 . . . 3 . 9 5 26 Power 7 | . . 1 1 1 . . . 1 . . . 3 Propulsion 21 | . 1 . 1 4 . . . 2 . 2 2 9 Utility 21 | . . . . 1 . . . . . 7 2 11 Weapon 6 | . . . . 2 . . . . . . 1 3 Highest Loss Streak 25 | . 1 1 1 7 . . . 2 . 9 2 25 To Critical Strikes . | . . . . . . . . . . . . . Average Backups 4 | 1 3 7 7 5 5 5 4 4 4 3 3 4 Power . | . . . . . . . . . . . . . Propulsion . | . . 1 1 . . 1 1 . . . 1 1 Utility 1 | . 1 3 2 1 2 1 . 2 3 2 . . Weapon 2 | . 1 1 3 3 3 2 3 1 1 1 1 1 Tool/Special . | . . . . . . . . . . . . . Unused Backups 9 | . . 1 2 2 . 2 . 1 . . . 1 Power . | . . . . . . . . . . . . . Propulsion 1 | . . . . . . . . . . . . 1 Utility 4 | . . 1 1 2 . . . . . . . . Weapon 4 | . . . 1 . . 2 . 1 . . . . Tool/Special . | . . . . . . . . . . . . . Average Slot Usage (%) 89 | . 93 90 99 90 100 100 92 98 86 80 69 76 Engine 5 | . 9 4 9 8 9 9 6 5 . . . . Reactor 1 | . . . . . . . . . . . 4 6 Flight 25 | . 10 31 35 23 36 36 33 32 26 21 11 23 Device 14 | . 14 20 18 9 9 9 16 26 26 18 13 12 Storage 2 | . 14 11 9 2 . . . . . . . . Processor 9 | . . . 9 17 18 11 6 6 6 7 7 9 Hackware 9 | . . . . 6 9 15 13 13 13 15 12 15 Energy Gun 5 | . 14 11 11 4 9 9 6 6 6 5 . . Ballistic Gun 5 | . 14 11 6 8 9 9 3 . . . 2 . Slashing Weapon 2 | . . . . . . . . 5 6 5 5 4 Peak Build Rating 105 | 7 7 14 26 32 33 46 61 62 56 66 104 105 Average Rating 44 | 4 6 12 22 26 32 40 56 61 56 60 75 80 On Entrance 35 | . 7 6 14 26 32 33 46 59 56 56 35 97 Avg Prop Armor Cover (%) 7 | . . . . 3 . . . 7 . . 14 8 Naked Turns . | . . . . . . . . . . . . . Heaviest Build 47 | 12 12 14 20 20 17 19 22 22 13 23 47 41 Greatest Support 140 | 20 20 15 20 20 20 22 38 38 24 33 140 53 Greatest Overweight (x) 3 | . 1 . 1 3 . . . . . . 1 3 Average Overweight (x) . | . . . . . . . . . . . . . Largest Inventory Capacity 8 | 8 8 8 8 8 5 5 5 5 5 5 5 5 Average Capacity 5 | 6 8 8 8 5 5 5 5 5 5 5 5 5 Most Carried 8 | 5 7 8 8 8 5 5 5 5 4 5 5 5 Average Carried 4 | 1 3 7 7 5 5 4 4 4 4 3 4 4 Final Capacity 8 | 8 8 8 8 5 5 5 5 5 5 5 5 5 Final Carried 7 | 1 7 7 7 5 5 5 5 4 4 1 5 2 Class Distribution -------------------- 20% | Sprinter 20% | Hacker-Scout 18% | Hacker-Sprinter 14% | Mutant 8% | Scavenger-Sprinter 7% | Hacker-Mutant 4% | Scavenger-Mutant 3% | Scavenger-Scout Dominant Class ---------------- Mutant | -10/Materials Scavenger-Sprinter | -9/Materials Scavenger-Sprinter | -8/Materials Sprinter | -8/Storage Sprinter | -8/Recycling Hacker-Sprinter | -8/Scraptown Hacker-Sprinter | -6/Factory Hacker-Scout | -6/Lower Caves Hacker-Scout | -6/Lower Caves Hacker-Scout | -5/Factory Hacker-Sprinter | -4/Factory Hacker-Sprinter | -3/Research Resources | -11 -10 -9 -8 -8 -8 -8 -6 -6 -6 -5 -4 -3 ----------- Run | Yrd Mat Mat Mat Sto Rec Scr Fac Low Low Fac Fac Res Matter Collected 1869 | 271 123 95 65 778 . 80 . 59 16 30 237 115 Remotely . | . . . . . . . . . . . . . Salvage Created 2433 | 116 57 145 34 1025 . . . 20 98 233 230 475 Parts 121 | 2 7 8 1 56 . . . . 3 6 10 28 Haulers Intercepted 6 | . . . . 4 . . . . . 1 1 . Recyclers Shooed 4 | . 1 . . 2 . . . . . 1 . . Parts Field Recycled . | . . . . . . . . . . . . . Retrieved Matter . | . . . . . . . . . . . . . Parts Self-Destructed . | . . . . . . . . . . . . . Prevented . | . . . . . . . . . . . . . Parts Restored . | . . . . . . . . . . . . . Kills | -11 -10 -9 -8 -8 -8 -8 -6 -6 -6 -5 -4 -3 ------- Run | Yrd Mat Mat Mat Sto Rec Scr Fac Low Low Fac Fac Res Combat Hostiles Destroyed 36 | . 3 4 1 18 . . . 1 . . 4 5 Melee 6 | . . . . . . . . 1 . . 1 4 Guns 18 | . 3 2 . 12 . . . . . . 1 . Cannons 1 | . . . . . . . . . . . . 1 AOE 11 | . . 2 1 6 . . . . . . 2 . Classes Destroyed 14 | 2 1 3 . 5 . . . . 1 . 1 1 Worker 5 | . . . . 3 . . . . . . . 2 Tunneler 4 | 2 1 . . . . . . . . . . 1 Hauler 6 | . . . . 4 . . . . . 1 1 . Recycler 6 | 1 . . . 3 . . . . . 1 . 1 Mechanic 1 | . . . . 1 . . . . . . . . Operator 1 | . . . . 1 . . . . . . . . Watcher 2 | . . . . 2 . . . . . . . . Swarmer 12 | . 3 . . 3 . . . 1 . . 3 2 Grunt 11 | . . 2 1 7 . . . . . . . 1 Duelist 1 | . . 1 . . . . . . . . . . Sentry 9 | . . 1 . 8 . . . . . . . . Hunter 1 | . . . . . . . . . . . 1 . Programmer 2 | . . . . . . . . . . . . 2 Samaritan 2 | . . . . . . . . . 2 . . . Best Kill Streak 10 | 2 3 2 1 10 . . . 1 . 1 2 3 Combat Bots Only 9 | . 3 2 1 9 . . . 1 . . 2 3 Max Kills in Single Turn 3 | 1 2 2 1 3 . . . 1 1 1 2 2 Gunslinging 1 | . 1 . . . . . . . . . . . Exploded 2 | . . 2 1 2 . . . . . . 2 . Melee 2 | . . . . . . . . 1 . . 1 2 Uniques/NPCs Destroyed . | . . . . . . . . . . . . . Combat | -11 -10 -9 -8 -8 -8 -8 -6 -6 -6 -5 -4 -3 -------- Run | Yrd Mat Mat Mat Sto Rec Scr Fac Low Low Fac Fac Res Hostile Shots Fired 621 | . 38 55 2 80 . . 9 70 . 13 130 224 Missed 267 | . 7 37 1 31 . . 5 47 . 9 55 75 Hits 354 | . 31 18 1 49 . . 4 23 . 4 75 149 Melee 2 | . . 1 . . . . . . . 1 . . Projectile 352 | . 31 17 1 49 . . 4 23 . 3 75 149 AOE 2 | . . . . . . . . . . 2 . . Critical Strikes 13 | . 2 . . 4 . . . . . 1 2 4 Damage Taken 6233 | . 261 265 99 833 . . 28 299 . 634 1045 2769 Core 1909 | . 49 64 26 206 . . . 72 . 47 130 1315 Absorbed by Shields . | . . . . . . . . . . . . . Core Remaining (%) 85 | 100 80 84 . . . 57 . . 91 95 88 . Volleys Fired 110 | 11 15 7 8 57 . . . . . . 12 . Largest 2 | 2 2 2 2 2 . . . . . . 1 . Hottest 160 | 70 70 63 113 160 . . . . . . 36 . Shots Fired 195 | 22 30 14 15 102 . . . . . . 12 . Gun 169 | 22 30 14 11 81 . . . . . . 11 . Cannon . | . . . . . . . . . . . . . Launcher 26 | . . . 4 21 . . . . . . 1 . Special . | . . . . . . . . . . . . . Kinetic 101 | 11 15 7 4 53 . . . . . . 11 . Thermal 68 | 11 15 7 7 28 . . . . . . . . Explosive 26 | . . . 4 21 . . . . . . 1 . Electromagnetic . | . . . . . . . . . . . . . Robot Hit Streak 11 | 10 3 5 1 9 . . . . . . 11 . Robot Miss Streak 13 | 1 4 3 7 13 . . . . . . 1 . Penetration Max . | . . . . . . . . . . . . . Secondary Targets 2 | . 2 . . . . . . . . . . . Max Gunslinging Chain 1 | . 1 . . . . . . . . . . . Shots Hit Robots 171 | 20 11 9 1 73 . . . 5 5 5 16 26 Core Hits 135 | 6 6 7 1 93 . . . 1 . 1 8 12 Critical Kills . | . . . . . . . . . . . . . Critical Parts Destroyed 3 | . . . . . . . . . . . 2 1 Critical Strikes 6 | 1 . . . . . . . . . . 2 3 Burn 1 | 1 . . . . . . . . . . . . Destroy 2 | . . . . . . . . . . . 2 . Smash 1 | . . . . . . . . . . . . 1 Melee Attacks 97 | . . . . . . . 6 8 5 17 14 47 Impact 13 | . . . . . . . 6 . . . . 7 Slashing 84 | . . . . . . . . 8 5 17 14 40 Piercing . | . . . . . . . . . . . . . Sneak Attacks 13 | . . . . . . . . 1 5 2 1 4 Combat Hostiles 1 | . . . . . . . . 1 . . . . Follow-up Attacks 4 | . . . . . . . . . . . . 4 Damage Inflicted 5618 | 194 122 337 129 2029 . . . 246 399 333 590 1239 Guns 1698 | 194 122 128 10 1087 . . . . . . 157 . Cannons . | . . . . . . . . . . . . . Explosions 1460 | . . 209 119 942 . . . . . . 190 . Melee 2460 | . . . . . . . . 246 399 333 243 1239 Ramming . | . . . . . . . . . . . . . Kinetic 993 | 81 50 84 . 621 . . . . . . 157 . Thermal 1033 | 113 72 253 129 466 . . . . . . . . Explosive 1132 | . . . . 942 . . . . . . 190 . Electromagnetic . | . . . . . . . . . . . . . Impact 144 | . . . . . . . . . . . . 144 Slashing 2316 | . . . . . . . . 246 399 333 243 1095 Piercing . | . . . . . . . . . . . . . Highest Corruption 15 | . . . . . 1 . . . . 15 . 3 Average Corruption 3 | . . . . . 1 . . . . 14 . 2 Corruption Purged . | . . . . . . . . . . . . . Corruption Blocked . | . . . . . . . . . . . . . Effects 5 | . . . . . 1 . . . . 1 . 3 Message Errors 1 | . . . . . 1 . . . . . . . Matter Fused 3 | . . . . . . . . . . 1 . 2 Data Loss (minor) 1 | . . . . . . . . . . . . 1 Overload Shots . | . . . . . . . . . . . . . Overflow Damage 669 | . . . 17 8 . . . 42 196 133 51 222 Projectiles . | . . . . . . . . . . . . . Explosions 76 | . . . 17 8 . . . . . . 51 . Melee 593 | . . . . . . . . 42 196 133 . 222 Knockbacks . | . . . . . . . . . . . . . Impact . | . . . . . . . . . . . . . Kinetic . | . . . . . . . . . . . . . Secondary . | . . . . . . . . . . . . . Self-Inflicted Damage 177 | . . . 80 97 . . . . . . . . Shots 7 | . . . 3 4 . . . . . . . . Rammed . | . . . . . . . . . . . . . Targets Rammed . | . . . . . . . . . . . . . Kicked . | . . . . . . . . . . . . . Crushed . | . . . . . . . . . . . . . Highest Temperature 428 | 130 200 18 126 428 . . . 7 . . 133 292 Average Temperature 120 | 60 93 8 46 177 . . . 4 . . 53 135 Received Heat Transfer 588 | . . 84 9 369 . . 6 54 . 9 30 27 Effects 4 | . . . . 4 . . . . . . . . Shutdowns 1 | . . . . 1 . . . . . . . . Interference 2 | . . . . 2 . . . . . . . . Matter Decay 1 | . . . . 1 . . . . . . . . Siege Activations . | . . . . . . . . . . . . . Martial Activations . | . . . . . . . . . . . . . Shielding Activations . | . . . . . . . . . . . . . Robots Disrupted 1 | . . . . . . . . . . 1 . . Combat Hostiles . | . . . . . . . . . . . . . Robots Corrupted . | . . . . . . . . . . . . . Combat Hostiles . | . . . . . . . . . . . . . Parts Fried . | . . . . . . . . . . . . . Impact Corruptions 4 | . . . . . . . . . . . . 4 Robots Melted . | . . . . . . . . . . . . . Combat Hostiles . | . . . . . . . . . . . . . Parts Melted 4 | 2 . . . 2 . . . . . . . . Heat Transferred 2030 | 407 198 250 125 1050 . . . . . . . . Parts Sabotaged . | . . . . . . . . . . . . . Parts Stolen . | . . . . . . . . . . . . . Parts Stripped . | . . . . . . . . . . . . . Power Chain Reactions . | . . . . . . . . . . . . . Alert | -11 -10 -9 -8 -8 -8 -8 -6 -6 -6 -5 -4 -3 ------- Run | Yrd Mat Mat Mat Sto Rec Scr Fac Low Low Fac Fac Res Maximum Alert Level 1 | . . 1 . 1 . . . . . . . . Low Security (%) 90 | 100 100 90 100 68 100 . 100 . . 100 100 100 Level 1 9 | . . 9 . 31 . . . . . . . . Level 2 . | . . . . . . . . . . . . . Level 3 . | . . . . . . . . . . . . . Level 4 . | . . . . . . . . . . . . . Level 5 . | . . . . . . . . . . . . . High Security . | . . . . . . . . . . . . . Max Security . | . . . . . . . . . . . . . Peak Influence 332 | 5 60 246 137 332 78 . 21 . . 132 106 51 Initial 125 | . 3 10 99 57 78 . . . . 125 . 51 Average 61 | . 22 58 59 122 32 . 6 . . 99 23 20 Influence Increases 2613 | 15 75 326 198 861 88 . 60 425 . 69 234 262 Destroy 0b10 Robot/C 760 | . 60 80 20 400 . . . 20 . . 80 100 Destroy 0b10 Robot/NC 125 | 15 5 . . 70 . . . . . 10 5 20 Destroy Leader 206 | . 10 30 . 132 . . . . . 2 22 10 Allied During Kill 20 | . . . . 20 . . . . . . . . Successful Hack 101 | . . 24 . 22 28 . 12 . . . 15 . Select Force Hacks 60 | . . . . . 60 . . . . . . . Disable Machine 225 | . . 45 45 90 . . . . . 15 30 . Destroy Structure 261 | . . 27 58 127 . . 3 . . 12 22 12 Partial Spotted 135 | . . . 15 . . . 45 . . 30 15 30 Lose Combat Pursuer 720 | . . 120 60 . . . . 405 . . 45 90 Influence Decreases 2613 | 10 55 115 297 798 267 21 39 199 48 268 135 361 Entered New Map 556 | . 2 15 137 80 122 21 . 9 48 74 . 48 Time Decay 1195 | 10 43 90 140 318 67 . 39 160 . 90 114 124 Lost Part 399 | . 10 10 20 80 . . . 30 . 72 21 156 Lost Ally 27 | . . . . 20 . . . . . . . 7 Purge Threat 436 | . . . . 300 78 . . . . 32 . 26 Squads Dispatched 21 | . . 3 1 4 . . 2 . . 3 7 1 Investigation 9 | . . 3 . . . . 1 . . 2 2 1 Extermination 1 | . . . . . . . . . . . 1 . Reinforcement 4 | . . . 1 . . . 1 . . 1 1 . Assault 2 | . . . . 2 . . . . . . . . Garrison 5 | . . . . 2 . . . . . . 3 . Intercept . | . . . . . . . . . . . . . Searches Triggered . | . . . . . . . . . . . . . Construction Impeded . | . . . . . . . . . . . . . Haulers Reinforced . | . . . . . . . . . . . . . Active Scanning Responses . | . . . . . . . . . . . . . Cargo Convoy Interrupts . | . . . . . . . . . . . . . Stealth | -11 -10 -9 -8 -8 -8 -8 -6 -6 -6 -5 -4 -3 --------- Run | Yrd Mat Mat Mat Sto Rec Scr Fac Low Low Fac Fac Res Distress Signals 4 | . . 2 . 1 . . . . . . . 1 Communications Jammed . | . . . . . . . . . . . . . Distress Signals . | . . . . . . . . . . . . . Times Spotted 157 | . 5 30 7 28 . . 2 28 . 11 17 29 Peak Tracking Total 19 | . 4 19 4 7 . . 1 12 . 9 8 17 Tactical Retreats 19 | . . 3 2 . . . . 8 . . 2 4 Traps | -11 -10 -9 -8 -8 -8 -8 -6 -6 -6 -5 -4 -3 ------- Run | Yrd Mat Mat Mat Sto Rec Scr Fac Low Low Fac Fac Res Traps Triggered . | . . . . . . . . . . . . . Indirectly . | . . . . . . . . . . . . . Trap Hack Attempts . | . . . . . . . . . . . . . Triggered . | . . . . . . . . . . . . . Disarmed . | . . . . . . . . . . . . . Reprogrammed 1 | . . . . . . . . . . . 1 . Reused . | . . . . . . . . . . . . . Traps Extracted . | . . . . . . . . . . . . . Installed . | . . . . . . . . . . . . . Triggered . | . . . . . . . . . . . . . Objects Rigged 5 | . . 5 . . . . . . . . . . Exploded 1 | . . 1 . . . . . . . . . . Machines | -11 -10 -9 -8 -8 -8 -8 -6 -6 -6 -5 -4 -3 ---------- Run | Yrd Mat Mat Mat Sto Rec Scr Fac Low Low Fac Fac Res Machines Disabled 15 | . . 3 3 6 . . . . . 1 2 . Max in Single Turn 3 | . . 3 2 2 . . . . . 1 1 . Garrison Access 2 | . . . . . . . . . . . . 2 Machines Repaired . | . . . . . . . . . . . . . Machines Dismantled . | . . . . . . . . . . . . . Machines Sabotaged . | . . . . . . . . . . . . . Overloaded Fab Kills . | . . . . . . . . . . . . . Hacking | -11 -10 -9 -8 -8 -8 -8 -6 -6 -6 -5 -4 -3 --------- Run | Yrd Mat Mat Mat Sto Rec Scr Fac Low Low Fac Fac Res Machines Accessed 46 | . 1 4 1 8 8 5 4 1 . 5 4 5 Terminals 26 | . 1 3 1 7 6 . 2 . . 3 2 1 Fabricators 2 | . . . . . . . . . . 2 . . Repair Stations 1 | . . . . 1 . . . . . . . . Recycling Units 6 | . . . . . 2 . 1 . . . 2 1 Scanalyzers 3 | . . 1 . . . . 1 . . . . 1 Garrison Access 2 | . . . . . . . . . . . . 2 Total Hacks 147 | . 2 14 2 17 30 31 9 1 . 16 13 12 Successful 87 | . 1 9 2 6 11 31 3 1 . 5 9 9 Failed 59 | . 1 5 . 11 19 . 6 . . 11 4 2 Catastrophic 9 | . . . . 3 2 . 2 . . 2 . . Database Lockouts 1 | . . . . . . . . . . . . 1 Manual 58 | . . 7 . 13 18 . 5 . . 6 7 2 Terminals 86 | . 2 11 2 14 27 . 4 . . 12 11 3 Fabricators 4 | . . . . . . . . . . 4 . . Repair Stations 3 | . . . . 3 . . . . . . . . Recycling Units 9 | . . . . . 3 . 3 . . . 2 1 Scanalyzers 10 | . . 3 . . . . 2 . . . . 5 Garrison Access 3 | . . . . . . . . . . . . 3 Terminal Hacks 64 | . 1 5 2 5 8 31 1 1 . 3 6 1 Record 30 | . . . . . . 30 . . . . . . Part Schematic 3 | . . . . . 3 . . . . . . . Prototype ID Bank 4 | . . 1 . . 2 . . . . 1 . . Open Door 3 | . . . . 1 . 1 . 1 . . . . Level Access Points 1 | . . . . . . . . . . . 1 . Branch Access Points 1 | . . . 1 . . . . . . . . . Emergency Access Points 1 | . . . . . . . . . . . 1 . Terminal Index 5 | . . 1 . 1 1 . . . . . 2 . Scanalyzer Index 1 | . . 1 . . . . . . . . . . Unreport Threat 6 | . . . . 2 2 . . . . 1 . 1 Reprogram Traps 1 | . . . . . . . . . . . 1 . Recall Investigation 1 | . . . . . . . . . . 1 . . Recall Reinforcements 1 | . . . . . . . . . . . 1 . Hauler Manifests 1 | . 1 . . . . . . . . . . . Zone Layout 5 | . . 2 1 1 . . 1 . . . . . Fabricator Hacks 2 | . . . . . . . . . . 2 . . Load Schematic 1 | . . . . . . . . . . 1 . . Build 1 | . . . . . . . . . . 1 . . Repair Station Hacks 1 | . . . . 1 . . . . . . . . Refit 1 | . . . . 1 . . . . . . . . Recycling Unit Hacks 1 | . . . . . 1 . . . . . . . Report Inventory 1 | . . . . . 1 . . . . . . . Scanalyzer 8 | . . 3 . . . . 1 . . . . 4 Insert Component 1 | . . . . . . . . . . . . 1 Analyze 1 | . . . . . . . . . . . . 1 Retrieve Study 6 | . . 3 . . . . 1 . . . . 2 Garrison Access Hacks 2 | . . . . . . . . . . . . 2 Seal Access 2 | . . . . . . . . . . . . 2 Unauthorized Hacks 9 | . . 1 . . 2 . 1 . . . 3 2 Terminals 3 | . . 1 . . . . . . . . 1 1 Assimilate 2 | . . . . . . . . . . . 1 1 Detonate 1 | . . 1 . . . . . . . . . . Fabricators . | . . . . . . . . . . . . . Repair Stations . | . . . . . . . . . . . . . Recycling Units 6 | . . . . . 2 . 1 . . . 2 1 Tunnel 2 | . . . . . 2 . . . . . . . Fedlink 4 | . . . . . . . 1 . . . 2 1 Scanalyzers . | . . . . . . . . . . . . . Garrison Access . | . . . . . . . . . . . . . Data Cores Recovered 1 | . . . . 1 . . . . . . . . Used 1 | . . . . 1 . . . . . . . . Hacking Detections 31 | . 1 4 1 7 6 . 3 . . 5 2 2 Full Trace Events 10 | . . 3 . 1 4 . . . . 2 . . Feedback Events 1 | . . . . . 1 . . . . . . . Corruption 1 | . . . . . 1 . . . . . . . Feedback Blocked . | . . . . . . . . . . . . . Robot Schematics Acquired . | . . . . . . . . . . . . . Robots Built . | . . . . . . . . . . . . . Authchips . | . . . . . . . . . . . . . Time . | . . . . . . . . . . . . . Total Robot Build Rating . | . . . . . . . . . . . . . Part Schematics Acquired 4 | . . . . . 3 . . . . . . 1 Parts Built 1 | . . . . . . . . . . 1 . . Authchips . | . . . . . . . . . . . . . Time 73 | . . . . . . . . . . 73 . . Total Part Build Rating 3 | . . . . . . . . . . 3 . . Part Studies Acquired 6 | . . 3 . . . . 1 . . . . 2 Parts Repaired . | . . . . . . . . . . . . . Time . | . . . . . . . . . . . . . Parts Recycled . | . . . . . . . . . . . . . Recycled Matter . | . . . . . . . . . . . . . Retrieved Matter . | . . . . . . . . . . . . . Retrieved Components . | . . . . . . . . . . . . . Parts Scanalyzed 1 | . . . . . . . . . . . . 1 Part Schematics Acquired 1 | . . . . . . . . . . . . 1 Parts Damaged . | . . . . . . . . . . . . . Bothacking | -11 -10 -9 -8 -8 -8 -8 -6 -6 -6 -5 -4 -3 ------------ Run | Yrd Mat Mat Mat Sto Rec Scr Fac Low Low Fac Fac Res Used RIF Installer . | . . . . . . . . . . . . . Robots Hacked . | . . . . . . . . . . . . . Non-combat . | . . . . . . . . . . . . . Combat . | . . . . . . . . . . . . . Robot Hacks Applied . | . . . . . . . . . . . . . Relay Couplers Released . | . . . . . . . . . . . . . Fabnet Peak Effective % . | . . . . . . . . . . . . . Robots Rewired . | . . . . . . . . . . . . . Allies Hacked . | . . . . . . . . . . . . . Hacks Repelled . | . . . . . . . . . . . . . Allies | -11 -10 -9 -8 -8 -8 -8 -6 -6 -6 -5 -4 -3 -------- Run | Yrd Mat Mat Mat Sto Rec Scr Fac Low Low Fac Fac Res Total Allies 3 | . . . . 2 . . . . . . . 1 Largest Group 2 | . . . . 2 . . . . . . . 1 Highest-Rated Group 62 | . . . . 62 . . . . . . . 45 Highest-Rated Ally 45 | . . . . 31 . . . . . . . 45 Total Orders . | . . . . . . . . . . . . . Ally Attacks 16 | . . . . 16 . . . . . . . . Total Damage 205 | . . . . 205 . . . . . . . . Kills 2 | . . . . 2 . . . . . . . . Allies Corrupted . | . . . . . . . . . . . . . Allies Melted . | . . . . . . . . . . . . . Intel | -11 -10 -9 -8 -8 -8 -8 -6 -6 -6 -5 -4 -3 ------- Run | Yrd Mat Mat Mat Sto Rec Scr Fac Low Low Fac Fac Res Active Infowar (turns) 2988 | 2 152 180 286 715 142 396 101 402 18 196 168 230 Sensors 2300 | . . . 162 592 142 396 101 353 18 138 168 230 Terrain 953 | . . 163 286 15 . . 18 353 . 23 . 95 Seismic 457 | 2 152 180 123 . . . . . . . . . Machine Analysis 1941 | . . . . 699 142 396 101 402 18 183 . . Robot Analysis Total . | . . . . . . . . . . . . . Derelict Logs Recovered 3 | . . . . . . . . 3 . . . . Drone Launches . | . . . . . . . . . . . . . Drone Recoveries . | . . . . . . . . . . . . . Exploration | -11 -10 -9 -8 -8 -8 -8 -6 -6 -6 -5 -4 -3 ------------- Run | Yrd Mat Mat Mat Sto Rec Scr Fac Low Low Fac Fac Res Turns Passed 3478 | 75 152 180 286 715 142 396 101 402 18 204 470 337 Spaces Moved 5445 | 38 187 341 261 767 426 1304 250 638 17 276 456 484 Core 19 | 2 . . . 10 . . . . . . . 7 Treads 26 | . . . . . . . . . . . 11 15 Legs 126 | . . . . . . . . . . . 126 . Wheels 100 | 36 64 . . . . . . . . . . . Hover 191 | . . . . 191 . . . . . . . . Flight 4983 | . 123 341 261 566 426 1304 250 638 17 276 319 462 Fastest Speed 25 | 50 37 32 28 28 29 29 27 27 29 29 30 25 Average Speed 35 | 78 52 32 28 45 29 29 27 27 29 30 62 30 Slowest Speed 200 | 80 95 37 112 200 29 29 27 32 29 37 169 200 Overloaded Moves . | . . . . . . . . . . . . . Propulsion Burnouts . | . . . . . . . . . . . . . Robots Hopped 31 | . . 2 6 2 8 . 1 . . 2 2 8 Potential Cave-ins 5 | . . . . . . . . . . 5 . . Cave-ins Triggered 2 | . . . . . . . . . . 2 . . Exploration Rate (%) 37 | 5 28 50 29 89 76 87 6 75 5 8 12 13 Regions Visited 12 Branch Regions 5 Pre-discovered Areas 4 | . . . . . 2 1 . . . . 1 . Known Exits Taken 2 | . . . 1 . . . . . . . 1 . Unknown Exits Taken 10 | 1 1 1 . 1 1 1 1 1 1 1 . . Scrap Searched 5 | . . . . . . 4 . 1 . . . . Spaces Dug 78 | . . . 32 17 . . 4 2 . 11 6 6 Terrain Destroyed 280 | . . 29 84 138 . . 4 2 . 11 6 6 Melee 29 | . . . . . . . 4 2 . 11 6 6 Projectile . | . . . . . . . . . . . . . AOE 251 | . . 29 84 138 . . . . . . . . Terrain Rammed . | . . . . . . . . . . . . . Walls Destroyed . | . . . . . . . . . . . . . Machines Disabled . | . . . . . . . . . . . . . Actions | -11 -10 -9 -8 -8 -8 -8 -6 -6 -6 -5 -4 -3 --------- Run | Yrd Mat Mat Mat Sto Rec Scr Fac Low Low Fac Fac Res Total 6619 | 63 212 394 450 1023 435 1325 270 854 21 370 601 601 Wait 792 | . 1 36 163 165 17 . 5 199 . 64 76 66 Move 5373 | 37 186 336 249 762 409 1303 247 637 16 270 451 470 Hop 28 | . . 2 5 2 8 . 1 . . 2 2 6 Pick Up 64 | 8 6 6 8 8 . 6 4 3 . 2 9 4 Fast Attach 39 | . . . 1 8 . 3 1 1 . 2 20 3 Attach 45 | 7 1 4 4 4 . . 4 2 . 7 5 7 Detach 5 | . 1 . . . . . . . . 3 1 . Swap 20 | . 2 1 5 5 1 3 1 . . . 1 1 Drop 49 | . . 2 7 12 . 10 1 4 . 2 10 1 Fire 110 | 11 15 7 8 57 . . . . . . 12 . Melee 93 | . . . . . . . 6 8 5 17 14 43 Ram . | . . . . . . . . . . . . . Kick . | . . . . . . . . . . . . . Crush . | . . . . . . . . . . . . . Escape Stasis 1 | . . . . . . . . . . 1 . . Rewire . | . . . . . . . . . . . . . Trap . | . . . . . . . . . . . . . Miscellaneous . | . . . . . . . . . . . . . Route ------- -11/Scrapyard -10/Materials -9/Materials -8/Materials (discovered 2 exits: *Sto x2) -8/Storage (discovered 2 exits: [*Fac] / *Rec) -8/Recycling -8/Scraptown -6/Factory -6/Lower Caves -6/Lower Caves -5/Factory -4/Factory (discovered 4 exits: *Res x4) -3/Research History --------- Turn | Location | Event 23 | -11/Scrapyard | Discovered new exit (range 14) 76 | -11/Scrapyard | Entered Materials 195 | -10/Materials | Discovered new exit (range 10) 228 | -10/Materials | Entered another Materials area 228 | -9/Materials | Evolved 2 slots: Propulsion x1, Utility x1 406 | -9/Materials | Discovered new exit (range 7) 408 | -9/Materials | Entered another Materials area 408 | -8/Materials | Evolved 2 slots: Propulsion x1, Utility x1 664 | -8/Materials | Identified exit to Storage 694 | -8/Materials | Entered Storage 784 | -8/Storage | Garrison activated, responded to threat 880 | -8/Storage | Destroyed 9 combat bots 888 | -8/Storage | Lost 7 parts (1p4n1u1w) 930 | -8/Storage | Discovered new exit (range 8) 1140 | -8/Storage | Garrison activated, responded to threat 1230 | -8/Storage | Met a pair of Derelict thieves 1305 | -8/Storage | Used back door to open Recycling access 1305 | -8/Storage | Discovered new exit (range 3) 1375 | -8/Storage | Build established: Sprinter 1409 | -8/Storage | Entered Recycling 1410 | -8/Recycling | Met a Zionite searching for Scraptown 1544 | -8/Recycling | Scanned before Scraplab entrance 1551 | -8/Recycling | Discovered new exit (range 2) 1551 | -8/Recycling | Entered Scraptown 1551 | -8/Scraptown | System corruption cleaned by C-Scrubber 1560 | -8/Scraptown | Learned location of Extension (-6) 1680 | -8/Scraptown | Visited IN-MT5's Study 1688 | -8/Scraptown | Visited Red Mages 1701 | -8/Scraptown | Visited SPCMW 1710 | -8/Scraptown | Visited Cyclists 1717 | -8/Scraptown | Visited The Evicted 1726 | -8/Scraptown | Visited Awakened 1735 | -8/Scraptown | Visited UFD Registry 1737 | -8/Scraptown | Registered with UFD as "Technobank" 1755 | -8/Scraptown | Entered Cyclist Reading Room 1777 | -8/Scraptown | Visited Botcube Research 1783 | -8/Scraptown | Visited Science Testing Area 1788 | -8/Scraptown | Visited Scrap Suit Storage 1797 | -8/Scraptown | Visited Junk Repository 1814 | -8/Scraptown | Visited DA-N13 Charitable Foundation 1816 | -8/Scraptown | Found DCF Scrap (28 items) 1824 | -8/Scraptown | Visited Sword Containment 1828 | -8/Scraptown | Found Prototype Slashing Weapon 1871 | -8/Scraptown | Visited Scrapoid Pod Storage 1875 | -8/Scraptown | Visited A0-MCA Data Center 1877 | -8/Scraptown | Given an A- rating by A0-MCA 1882 | -8/Scraptown | Visited Observation Area 1907 | -8/Scraptown | Visited Derelict Rescue Squad 1930 | -8/Scraptown | Met Optimus 1930 | -8/Scraptown | Accepted into 0bPrime 1946 | -8/Scraptown | Discovered new exit (range 3) 1947 | -8/Scraptown | Entered Factory 1947 | -6/Factory | Evolved 4 slots: Propulsion x1, Utility x3 1951 | -6/Factory | Loaded intel: 8 recycling unit locations 1972 | -6/Factory | Spotted B-75 Beast 2012 | -6/Factory | Build established: Hacker-Sprinter 2033 | -6/Factory | Discovered new exit (range 6) 2048 | -6/Factory | Entered Lower Caves 2052 | -6/Lower Caves | Learned 8 Factory zone layouts 2061 | -6/Lower Caves | Identified Companion Sword 2079 | -6/Lower Caves | Encountered a Warlord checkpoint 2084 | -6/Lower Caves | Learned Factory emergency access door positions 2120 | -6/Lower Caves | Attracted the attention of an 0b10 outpost 2154 | -6/Lower Caves | Learned Factory non-interactive machine intel 2242 | -6/Lower Caves | Attracted the attention of an 0b10 checkpoint 2328 | -6/Lower Caves | Build established: Hacker-Scout 2448 | -6/Lower Caves | Discovered new exit (range 8) 2450 | -6/Lower Caves | Entered another Lower Caves area 2465 | -6/Lower Caves | Discovered new exit (range 9) 2468 | -6/Lower Caves | Entered Factory 2468 | -5/Factory | Evolved 2 slots: Power x1, Utility x1 2471 | -5/Factory | Loaded intel: 235 non-interactive machine locations 2626 | -5/Factory | Fabricated Hacking Suite? 2632 | -5/Factory | Discovered new exit (range 15) 2648 | -5/Factory | Crushed by falling debris 2651 | -5/Factory | Crushed by falling debris 2652 | -5/Factory | System corruption reached 10% 2672 | -5/Factory | Entered another Factory area 2672 | -4/Factory | Evolved 2 slots: Propulsion x1, Utility x1 2700 | -4/Factory | Lost 9 parts (2n7u) 2708 | -4/Factory | Loaded intel: 8 recycling unit locations 2708 | -4/Factory | Learned location of Protoforge (-2) 3052 | -4/Factory | Identified exit to Research 3142 | -4/Factory | Entered Research 3142 | -3/Research | Evolved 2 slots: Propulsion x1, Utility x1 3199 | -3/Research | Central database locked down 3262 | -3/Research | Spotted B-86 Titan 3264 | -3/Research | Loaded intel: 5 recycling unit locations 3465 | -3/Research | Core integrity fell below 50% 3473 | -3/Research | Core integrity fell below 20% 3479 | -3/Research | Destroyed by S-43 Plague with Heavy Machine Gun Last Messages --------------- 03473_ Destroyed Xenon Bombardment Thruster. 03473_ S-43 Plague system corrupted by crushing effect. 03473_ Slug penetrates Wall. 03473_ Penetrated by Slug. 03473_ Companion Sword destroyed. Companion Sword: "I didn't think it would end like this..." 03474_ Impact Mace destroyed. 03475_ Imp. Targeting Computer destroyed. 03475_ S-43 Plague destroyed. 03476_ K-01 Serf collects debris. 03476_ Acquired 5 matter. 03477_ System corrupted: Component data lost. 03477_ P-80 Master resets S-43 Plague, system corruption cleaned. 03477_ Acquired Xenon Bombardment Thruster. 03479_ U-05 Engineer builds a Wall. 03479_ S-43 Plague misfires. 03479_ U-05 Engineer destroyed. Map ----- +----------------------------------------------------+ | ?????????????????????????????????????????????????? | | ?????????????????????????????????????????????????? | | ?????????????????????????????????????????????????? | | ?????????????????????????????????????????????????? | | ??????????????????????????????????????????? ???? | | ??????????????????????????????????????????? "??? | | ??????????????????????????????????????????? ""? | | ??????????????????????????????????????????" """ | | ??????????????????????????????????????????" | | ??????????????????????????????????????????# | | ??????????????????????????????????????????# | | ??????????????????????????????????????????# ? | | ??????????????????????????????????????????# ?? | | ??????????????????????????????????????????# #?? | | ????????????? ???????????????????????????# #? | | ?????????????? #????????????????????????# !# | | ??????????????? ???????????????????????# =%+ ? | | ???????????? ??????###?????????????# ^ #?? | | ???????????? ###################^^ #?? | | ???????????? % ![%*=[%=* #?? | | ??????????????#######g##################### #?? | | ????????????# k%ss=%#???????????# #?? | | ????????????# sss=|#???????????# #?? | | ????????????# """""""s%s #???????????# #?? | | ??????????????????""""""" k #???????????# #?? | | ???????????????????""""""@ #??????###??# #?? | | ???????????????? #??????# ?# #?? | | ??????????????? #??????# ?# #?? | | ???????????????################??????# # #?? | | ?????????????????????????????????????# # #?? | | ?????????????????????????????????????# + +?? | | ?????????????????????????????????????# # #?? | | ?????????????????????????????????????# # #?? | | ?????????????????????????????????????# ?# #?? | | ?????????????????????????????????????# ! ?# #?? | | ?????????????????????????????????????###### #?? | | ?????????????????????????????????????# # ### | | ?????????????????????????????????????# # | | ?????????????????????????????????????# + | | ?????????????????????????????????????# # | | ?????????????????????????????????????# # [ | | ?????????????????????????????????????#= ######## | | ?????????????????????????????????????# #??# [ | | ?????????????????????????????????????# #??# ! | | ?????????????????????????????????????# #??# | | ?????????????????????????????????????######??# | | ?????????????????????????????????????????????# / | | ?????????????????????????????????????????????# // | | ?????????????????????????????????????????????# /* | | ?????????????????????????????????????????????# | +----------------------------------------------------+ Best States ------------- Heat Dissipation 46 Energy Generation 43 Energy Capacity 310 Matter Stores 300 Matter Capacity 300 Sight Range 16 Robot Scan Range 16 Terrain Scan Range 20 Terrain Scan Density 110 Power Amplification 20 Additional Mass Support 9 Resistance: EX 50 Power Shielding 90 Point Defense Rating 240 Phase Shifting 10 Evasion (%) 75 Targeting Accuracy 6 Recoil Reduction 4 Salvage Targeting 9 Offensive Hacking 20 Defensive Hacking 22 Item Schematics ----------------- Hacking Suite | -8/Recycling | Hacked Imp. Sensor Array | -8/Recycling | Hacked System Shield | -8/Recycling | Hacked VTOL Module | -3/Research | Scanalyzed Robot Schematics ------------------ None Fabricated ------------ Hacking Suite | x1 | -5/Factory Repaired ---------- Nothing Studied --------- Flight Unit | -9/Materials | Hacked VTOL Module | -9/Materials | Hacked Lgt. Ion Engine | -9/Materials | Hacked Nuclear Pulse Thruster | -6/Factory | Hacked Field Propulsion Drive | -3/Research | Hacked Lgt. Antimatter Reactor | -3/Research | Hacked Alien Tech Used ----------------- None Achievements -------------- None Challenges ------------ None Game ------ Seed GatlingPortablePropulsion Manual? 0 Play Time 01:17:29 Cumulative 116.0 hours Start 2025.12.08 @ 19:49:18 End 2025.12.08 @ 21:07:20 Sessions 1 Manual Loads 0 Difficulty Rogue Special Mode None Game No. 165 Rogue 165 Adventurer 0 Explorer 0 Win Type - Total 1 Types 1/0/0/0/0/0/0/0/0/0 Lore% 60 Gallery% 56 Achievement% 42 Wizard Run 0 Options --------- Layout 2 ASCII 0 Keyboard 0 Movement Mouse Keybinds 0 Fullscreen 1 Font 16/SmallcapsGlow Map View 25x24 Zoom Use 99% Tactical HUD 1 Map Filters NONE Filters NONE Steam SD RUN: 57e6d6e8-91f5-4480-95d7-03cd52f27497